No. of Trans.,Dept. Family,Entity Name,Cert Date,Supplier Name,Reference,Gross Amount,Group-Dep,Type of Expenditure - Subjective Codes 
1,DCMS,EH,10/07/2013,Feilden Clegg Bradley Studios LLP,40035253,"31,298.40",Heritage Protection & Planning-Nat. Planning & Conservation,Fees for Professional Advice
2,DCMS,EH,10/07/2013,Feilden Clegg Bradley Studios LLP,40035253,"3,276.00",Heritage Protection & Planning-Nat. Planning & Conservation,Fees for Professional Advice
3,DCMS,EH,10/07/2013,Feilden Clegg Bradley Studios LLP,40035255,"34,344.00",Heritage Protection & Planning-Nat. Planning & Conservation,Commissioned Architects
4,DCMS,EH,10/07/2013,Feilden Clegg Bradley Studios LLP,40035256,"87,853.20",Heritage Protection & Planning-Nat. Planning & Conservation,Commissioned Architects
5,DCMS,EH,03/07/2013,Feilden Clegg Bradley Studios LLP,40035281,"-62,490.00",Heritage Protection & Planning-Nat. Planning & Conservation,Commissioned Architects
6,DCMS,EH,31/07/2013,University of London,40037471,"33,419.87",Heritage Protection & Planning-Heritage Protection,Hist Environ Prog Projects Gra
7,DCMS,EH,09/07/2013,Treasure and Son,40036165,"2,945.03",National Collections-Property Maintenance Programme,Annual Cyclical Works-Building
8,DCMS,EH,09/07/2013,Treasure and Son,40036165,"32,212.45",National Collections-Property Maintenance Programme,Annual Cyclical Works-Building
9,DCMS,EH,02/07/2013,William Anelay Limited,40035186,"122,904.00",Heritage Protection & Planning-Nat. Planning & Conservation,Works for Heritage Buildings
10,DCMS,EH,31/07/2013,William Anelay Limited,40038293,"85,488.00",Heritage Protection & Planning-Nat. Planning & Conservation,Works for Heritage Buildings
11,DCMS,EH,01/07/2013,W H Smith and R Ensor SAP Scheme,40035182,"35,516.40",Resources-Office Estate,Rent - Operating Leases
12,DCMS,EH,29/07/2013,Knight Frank LLP,40037516,"33,102.95",Resources-Office Estate,Building Service Charges
13,DCMS,EH,30/07/2013,Sykes and Son Limited,40037413,"31,373.94",National Collections-Property Maintenance Programme,Annual Cyclical Works-Building
14,DCMS,EH,30/07/2013,Sykes and Son Limited,40037413,"2,333.68",National Collections-Property Maintenance Programme,Annual Cyclical Works-Building
15,DCMS,EH,11/07/2013,PAYE Stonework and Restoration Ltd,40035585,"173,883.40",National Collections-Major Conservation Projects,Works for Heritage Buildings
16,DCMS,EH,11/07/2013,PAYE Stonework and Restoration Ltd,40035585,"74,521.46",National Collections-Major Conservation Projects,WIP Operational Building Works
17,DCMS,EH,30/07/2013,Gillards Worldwide,40037448,"67,540.41",National Collections-Historic Properties Department,Storage & Warehousing
18,DCMS,EH,05/07/2013,Historic Property Restoration Ltd,40035842,"28,415.02",National Collections-Property Maintenance Programme,Annual Cyclical Works-Building
19,DCMS,EH,05/07/2013,Historic Property Restoration Ltd,40035842,"11,651.29",National Collections-Property Maintenance Programme,Annual Cyclical Works-Building
20,DCMS,EH,05/07/2013,Historic Property Restoration Ltd,40035842,"2,720.17",National Collections-Property Maintenance Programme,Annual Cyclical Work M & E
21,DCMS,EH,05/07/2013,Historic Property Restoration Ltd,40035842,"17,252.71",National Collections-Property Maintenance Programme,Annual Cyclical Work M & E
22,DCMS,EH,24/07/2013,Eve Trakway Limited,40035105,"25,272.60",National Collections-Historic Properties Department,Plant & Equipment Hire
23,DCMS,EH,08/07/2013,Swets Information Services Ltd,40036089,"28,000.00",National Collections-Curatorial Department,Journal Subscriptions
24,DCMS,EH,17/07/2013,Mail Marketing Scotland Ltd,40037103,"-23,000.00",National Collections-Marketing,Postage & Couriers
25,DCMS,EH,26/07/2013,Sinclair Knight Merz (Europe) Ltd,40037338,"49,135.20",National Collections-Capital Investment Programme,WIP Professional Works Advice
26,DCMS,EH,22/07/2013,Enterprise Rent A Car UK Ltd,20051784,"38,034.45",Resources-Corporate,Car Hire
27,DCMS,EH,11/07/2013,Fairhurst Ward Abbotts Ltd,40036421,"59,521.23",National Collections-Major Conservation Projects,WIP Operational Building Works
28,DCMS,EH,11/07/2013,Quadron Services Ltd,40036015,"5,766.93",National Collections-Property Maintenance Programme,Annual Cyclical Works-Building
29,DCMS,EH,11/07/2013,Quadron Services Ltd,40036015,"12,706.91",National Collections-Property Maintenance Programme,Annual Cyclical Works-Building
30,DCMS,EH,11/07/2013,Quadron Services Ltd,40036015,"6,844.20",National Collections-Property Maintenance Programme,Annual Cyclical Works-Building
31,DCMS,EH,03/07/2013,J R Event Services LTD,40035028,"35,556.00",National Collections-Historic Properties Department,Plant & Equipment Hire
32,DCMS,EH,12/07/2013,Capita Secure Information Solutions Ltd,40032885,"246,784.62",Resources-IMT,ITFM
33,DCMS,EH,03/07/2013,Jones Lang LaSalle Limited,40035616,"8,168.10",Resources-Office Estate,Building Service Charges
34,DCMS,EH,03/07/2013,Jones Lang LaSalle Limited,40035616,"22,747.50",Resources-Office Estate,Rent - Operating Leases
35,DCMS,EH,05/07/2013,Skanska Rashleigh Weatherfoil Ltd,40033763,"94,218.00",National Collections-Curatorial Department,WIP Operational Building Works
36,DCMS,EH,26/07/2013,Skanska Rashleigh Weatherfoil Ltd,40036557,"73,244.40",National Collections-Curatorial Department,WIP Operational Building Works
37,DCMS,EH,16/07/2013,Transport Design International,40035693,"25,290.00",National Collections-Capital Investment Programme,WIP Asset Purch Over 10k
38,DCMS,EH,16/07/2013,Transport Design International,40035694,"25,290.00",National Collections-Capital Investment Programme,WIP Asset Purch Over 10k
39,DCMS,EH,10/07/2013,Vinci Construction UK Ltd,40036289,"163,916.40",National Collections-Capital Investment Programme,Works for Heritage Buildings
40,DCMS,EH,10/07/2013,Vinci Construction UK Ltd,40036289,"1,629.60",National Collections-Capital Investment Programme,WIP Professional Works Advice
41,DCMS,EH,10/07/2013,Vinci Construction UK Ltd,40036289,"43,226.40",National Collections-Capital Investment Programme,WIP Operational Building Works
42,DCMS,EH,10/07/2013,Vinci Construction UK Ltd,40036289,"6,393.60",National Collections-Capital Investment Programme,Works for Heritage Buildings
43,DCMS,EH,10/07/2013,Vinci Construction UK Ltd,40036289,"132,158.40",National Collections-Capital Investment Programme,Works for Heritage Buildings
44,DCMS,EH,10/07/2013,Vinci Construction UK Ltd,40036289,"200,174.40",National Collections-Capital Investment Programme,WIP Operational Building Works
45,DCMS,EH,10/07/2013,Vinci Construction UK Ltd,40036289,"41,298.00",National Collections-Capital Investment Programme,WIP Operational Building Works
46,DCMS,EH,10/07/2013,Vinci Construction UK Ltd,40036289,"82,138.80",National Collections-Capital Investment Programme,WIP Operational Building Works
47,DCMS,EH,10/07/2013,Vinci Construction UK Ltd,40036289,"32,874.00",National Collections-Capital Investment Programme,WIP Operational Building Works
48,DCMS,EH,10/07/2013,Vinci Construction UK Ltd,40036289,"186,742.80",National Collections-Capital Investment Programme,WIP Operational Building Works
49,DCMS,EH,10/07/2013,Vinci Construction UK Ltd,40036289,"6,272.40",National Collections-Capital Investment Programme,Works for Heritage Buildings
50,DCMS,EH,11/07/2013,Nu-Weld Engineering Services Ltd,40036275,"44,537.02",National Collections-Capital Investment Programme,WIP Operational Building Works
51,DCMS,EH,26/07/2013,Greenfold Systems Ltd,40037419,"142,508.41",National Collections-Capital Investment Programme,WIP Asset Purch Over 10k
52,DCMS,EH,04/07/2013,Hartwell Interior Decorators Ltd,40035707,"34,197.30",National Collections-Major Conservation Projects,Planned Maintenance
53,DCMS,EH,04/07/2013,EDF ,20051655,"25,536.47",Resources-Corporate,Electricity
54,DCMS,EH,29/07/2013,EDF,20051816,"25,273.48",Resources-Corporate,Electricity
55,DCMS,EH,24/07/2013,Historic Environment Service,81002577,"25,804.25",Heritage Protection & Planning-Heritage Protection,ENABLING PROGRAMMESENABLING PROGRAMMES
56,DCMS,EH,19/07/2013,L B Alexandra Park & Palace,82001841,"118,060.00",Heritage Protection & Planning-Nat. Planning & Conservation,GRANTS PAYABLEHISTORIC BUILDINGS
57,DCMS,EH,09/07/2013,St Peter & St Paul Buckingham PCC,82001805,"76,500.00",Heritage Protection & Planning-Nat. Planning & Conservation,GRANTS PAYABLEPLACES OF WORSHIP
58,DCMS,EH,17/07/2013,"PCC of St Nicholas' Church, Ganton",82001833,"34,500.00",Heritage Protection & Planning-Nat. Planning & Conservation,GRANTS PAYABLEPLACES OF WORSHIP
59,DCMS,EH,24/07/2013,Memorial Community Church Plaistow,82001852,"79,500.00",Heritage Protection & Planning-Nat. Planning & Conservation,GRANTS PAYABLEPLACES OF WORSHIP
60,DCMS,EH,30/07/2013,PCC St Gabriels,82001857,"49,333.00",Heritage Protection & Planning-Nat. Planning & Conservation,GRANTS PAYABLEPLACES OF WORSHIP
61,DCMS,EH,24/07/2013,Padley Hall & Chapel,82001851,"37,678.00",Heritage Protection & Planning-Nat. Planning & Conservation,GRANTS PAYABLEHISTORIC BUILDINGS
62,DCMS,EH,05/07/2013,St John the Evangelist PCC,82001789,"69,500.00",Heritage Protection & Planning-Nat. Planning & Conservation,GRANTS PAYABLEPLACES OF WORSHIP
63,DCMS,EH,09/07/2013,The PCC of All Saints Parish,82001806,"26,500.00",Heritage Protection & Planning-Nat. Planning & Conservation,GRANTS PAYABLEPLACES OF WORSHIP
64,DCMS,EH,12/07/2013,Scarborough Studios Ltd,82001815,"41,250.00",Heritage Protection & Planning-Nat. Planning & Conservation,GRANTS PAYABLEHISTORIC BUILDINGS
65,DCMS,EH,09/07/2013,PCC of Checkendon,82001811,"37,081.00",Heritage Protection & Planning-Nat. Planning & Conservation,GRANTS PAYABLEPLACES OF WORSHIP
66,DCMS,EH,24/07/2013,Ingham PCC,82001850,"25,540.00",Heritage Protection & Planning-Nat. Planning & Conservation,GRANTS PAYABLEPLACES OF WORSHIP
67,DCMS,EH,19/07/2013,"St Mary's, Newport PCC",82001838,"39,078.00",Heritage Protection & Planning-Nat. Planning & Conservation,GRANTS PAYABLEPLACES OF WORSHIP
68,DCMS,EH,12/07/2013,Shipdham Church Wardens,82001824,"53,100.00",Heritage Protection & Planning-Nat. Planning & Conservation,GRANTS PAYABLEPLACES OF WORSHIP
69,DCMS,EH,12/07/2013,Ingham PCC,82001822,"50,000.00",Heritage Protection & Planning-Nat. Planning & Conservation,GRANTS PAYABLEPLACES OF WORSHIP
70,DCMS,EH,02/07/2013,"PCC of Holy Trinity, Much Wenlock",82001776,"32,000.00",Heritage Protection & Planning-Nat. Planning & Conservation,GRANTS PAYABLEPLACES OF WORSHIP
71,DCMS,EH,30/07/2013,"PCC of St Andrew and St Peter, Blofield",82001858,"33,500.00",Heritage Protection & Planning-Nat. Planning & Conservation,GRANTS PAYABLEPLACES OF WORSHIP
72,DCMS,EH,12/07/2013,Paston PCC,82001823,"57,500.00",Heritage Protection & Planning-Nat. Planning & Conservation,GRANTS PAYABLEPLACES OF WORSHIP
73,DCMS,EH,30/07/2013,Itchingfield PCC,82001860,"42,000.00",Heritage Protection & Planning-Nat. Planning & Conservation,GRANTS PAYABLEPLACES OF WORSHIP
74,DCMS,EH,09/07/2013,St Giles Parochial Church Council,82001803,"59,500.00",Heritage Protection & Planning-Nat. Planning & Conservation,GRANTS PAYABLEPLACES OF WORSHIP
75,DCMS,EH,05/07/2013,PCC of Pyrton,82001787,"36,000.00",Heritage Protection & Planning-Nat. Planning & Conservation,GRANTS PAYABLEPLACES OF WORSHIP
76,DCMS,EH,30/07/2013,Badsworth Parochial Church Council,82001861,"31,950.00",Heritage Protection & Planning-Nat. Planning & Conservation,GRANTS PAYABLEPLACES OF WORSHIP
77,DCMS,EH,12/07/2013,Hampstead with Eccles & Lessingham PCC,82001825,"57,500.00",Heritage Protection & Planning-Nat. Planning & Conservation,GRANTS PAYABLEPLACES OF WORSHIP
78,DCMS,EH,09/07/2013,North Petherton Parochial Church Council,82001808,"27,200.00",Heritage Protection & Planning-Nat. Planning & Conservation,GRANTS PAYABLEPLACES OF WORSHIP
79,DCMS,EH,19/07/2013,All Saints Fulham PCC,82001840,"33,000.00",Heritage Protection & Planning-Nat. Planning & Conservation,GRANTS PAYABLEPLACES OF WORSHIP
80,DCMS,EH,02/07/2013,"St Mary,  Widnes PCC General Fund",82001780,"87,000.00",Heritage Protection & Planning-Nat. Planning & Conservation,GRANTS PAYABLEPLACES OF WORSHIP
81,DCMS,EH,19/07/2013,PCC of Hawes Church,82001844,"94,000.00",Heritage Protection & Planning-Nat. Planning & Conservation,GRANTS PAYABLEPLACES OF WORSHIP
82,DCMS,EH,30/07/2013,St Stephens Parochial Church Council,82001863,"84,000.00",Heritage Protection & Planning-Nat. Planning & Conservation,GRANTS PAYABLEPLACES OF WORSHIP
83,DCMS,EH,17/07/2013,St Mary's Parochial Church Council,82001834,"35,500.00",Heritage Protection & Planning-Nat. Planning & Conservation,GRANTS PAYABLEPLACES OF WORSHIP
84,DCMS,EH,24/07/2013,TG & AJ Harding,82001853,"40,500.00",Heritage Protection & Planning-Nat. Planning & Conservation,GRANTS PAYABLEHISTORIC BUILDINGS
85,DCMS,EH,03/07/2013,Lyme Bay Cider Company Ltd,1081102,"34,583.94",National Collections-Historic Properties Department,
